bitfinex-derivatives/quotes_BNBF0:USTF0_20251219
["timestamp","ask_amount","ask_price","bid_price","bid_amount"]
[1766155732411,1.72125064,849.16,846.37,0.86683654]
[1766155733118,1.72125064,849.17,846.36,0.86683654]
[1766155733317,1.72125064,849.01,846.3,0.20517356]
[1766155733513,1.72125064,848.94,846.3,0.20517356]
[1766155734018,1.72125064,848.91,846.3,0.20517356]
[1766155734216,1.72125064,848.94,846.3,0.20517356]
[1766155734514,1.72125064,848.93,846.3,0.20517356]
[1766155734714,1.72125064,848.94,846.3,0.20517356]
[1766155735314,1.72125064,848.96,846.3,0.20517356]
[1766155736215,1.72125064,848.98,846.3,0.20517356]
[1766155736414,1.72125064,848.99,846.3,0.20517356]
[1766155736618,1.72125064,849.06,846.3,0.20517356]
[1766155737215,1.72125064,849.13,846.3,0.20517356]
[1766155737415,1.72125064,849.19,846.3,0.20517356]
[1766155738221,1.72125064,849.2,846.3,0.20517356]
[1766155738820,1.72125064,849.24,846.3,0.20517356]
[1766155739318,1.72125064,849.25,846.3,0.20517356]
[1766155740520,1.72125064,849.26,846.3,0.20517356]
[1766155740721,1.72125064,849.28,846.3,0.20517356]
[1766155741220,1.72125064,849.3,846.3,0.20517356]
[1766155741617,1.72125064,849.21,846.3,0.20517356]
[1766155741818,1.72125064,849.14,846.3,0.20517356]
[1766155742425,1.72125064,849.15,846.3,0.20517356]
[1766155742620,1.72125064,848.77,846.3,0.20517356]
[1766155742824,1.14909225,848.52,845.6,0.86683654]
[1766155743021,1.14909225,848.48,846.14,0.20540486]
[1766155743226,1.14909225,848.37,846.14,0.20540486]
[1766155743421,1.14909225,848.4,846.14,0.20540486]
[1766155743923,1.14909225,848.39,845.4,0.86683654]
[1766155744124,1.14909225,848.4,846.09,0.20545094]
[1766155744324,1.14909225,848.45,846.09,0.20545094]
[1766155744621,1.72125064,848.73,846.09,0.20545094]
[1766155744821,1.72125064,848.77,846.09,0.20545094]
[1766155745022,1.72125064,848.89,846.09,0.20545094]
[1766155745222,1.72125064,848.92,846.09,0.20545094]
[1766155745426,1.72125064,849.0,846.09,0.20545094]
[1766155745623,1.72125064,849.08,846.09,0.20545094]
[1766155745824,1.72125064,849.19,846.09,0.20545094]
[1766155746027,1.72125064,849.23,846.09,0.20545094]
[1766155746326,0.01294941,850.04,846.09,0.20545094]
[1766155746327,1.72125064,849.22,846.09,0.20545094]
[1766155746526,1.72125064,849.28,846.1,0.86683654]
[1766155747125,1.72125064,849.27,846.12,0.86683654]
[1766155747331,1.72125064,849.26,846.12,0.86683654]
[1766155747528,1.72125064,849.28,846.14,0.86683654]
[1766155748232,1.72125064,849.27,846.15,0.86683654]
[1766155749232,2.86951678,849.88,846.11,0.86683654]
[1766155749233,1.72125064,849.21,846.11,0.86683654]
[1766155749425,1.72125064,849.2,846.12,0.86683654]
[1766155749928,1.72125064,849.09,846.09,0.20545094]
[1766155750228,1.72125064,849.08,846.09,0.20545094]
[1766155751222,1.72125064,849.07,846.09,0.20545094]
[1766155751423,1.72125064,849.13,846.11,0.86683654]
[1766155752224,1.72125064,849.11,846.13,0.86683654]
[1766155752728,1.72125064,849.12,846.14,0.86683654]
[1766155752925,1.72125064,849.11,846.14,0.86683654]
[1766155753229,1.72125064,849.1,846.16,0.86683654]
[1766155753429,1.72125064,849.1,846.17,0.86683654]
[1766155754229,1.72125064,849.08,846.18,0.86683654]
[1766155754524,1.72125064,849.06,846.16,0.86683654]
[1766155754927,1.72125064,848.97,846.09,0.20545094]
[1766155755229,1.72125064,848.94,846.09,0.20545094]
[1766155755424,1.72125064,848.93,846.09,0.20545094]
[1766155755627,1.72125064,848.85,846.09,0.20545094]
[1766155756028,1.72125064,848.87,846.09,0.20545094]
[1766155756229,1.72125064,848.86,846.09,0.20545094]
[1766155757131,1.72125064,848.85,846.09,0.20545094]
[1766155757829,1.72125064,848.9,846.09,0.20545094]
[1766155758329,1.72125064,848.92,846.11,0.86683654]
[1766155758533,1.72125064,849.02,846.21,0.86683654]
[1766155758735,1.72125064,849.11,846.3,0.86683654]
[1766155759231,1.72125064,849.12,846.32,0.86683654]
[1766155759434,1.72125064,849.11,846.33,0.86683654]
[1766155760129,2.86951678,849.72,846.09,0.20545094]
[1766155760130,1.72125064,849.1,846.34,0.86683654]
[1766155760328,1.72125064,849.1,846.35,0.86683654]
[1766155760535,1.72125064,849.1,846.34,0.86683654]
[1766155760735,1.72125064,849.1,846.35,0.86683654]
[1766155761035,1.72125064,849.12,846.37,0.86683654]
[1766155761232,1.72125064,849.1,846.39,0.86683654]
[1766155761431,1.72125064,849.17,846.47,0.86683654]
[1766155761834,1.72125064,849.18,846.47,0.86683654]
[1766155762037,1.72125064,849.21,846.5,0.86683654]
[1766155762233,1.72125064,849.19,846.52,0.86683654]
[1766155762437,1.72125064,849.19,846.54,0.86683654]
[1766155763133,1.72125064,849.17,846.56,0.86683654]
[1766155763337,1.72125064,849.16,846.56,0.86683654]
[1766155764134,1.72125064,849.14,846.59,0.86683654]
[1766155764334,1.72125064,849.01,846.47,0.86683654]
[1766155765337,1.72125064,848.98,846.5,0.86683654]
[1766155766036,1.72125064,848.94,846.46,0.86683654]
[1766155766234,2.86951678,849.59,846.09,0.20545094]
[1766155766235,1.72125064,848.92,846.49,0.86683654]
[1766155766437,1.72125064,848.82,846.41,0.86683654]
[1766155766637,1.72125064,848.78,846.36,0.86683654]
[1766155767238,1.72125064,848.72,846.36,0.86683654]
[1766155767433,1.72125064,848.6,846.23,0.86683654]
[1766155767633,1.72125064,848.58,846.21,0.86683654]
[1766155768140,1.72125064,848.57,846.21,0.86683654]
[1766155768341,1.72125064,848.54,846.25,0.86683654]
[1766155768942,1.72125064,848.51,846.22,0.86683654]
[1766155769137,2.86951678,849.15,846.27,0.86683654]
[1766155769138,1.72125064,848.47,846.27,0.86683654]
[1766155769337,1.72125064,848.48,846.27,0.86683654]
[1766155769941,1.72125064,848.53,846.32,0.86683654]
[1766155770142,1.72125064,848.49,846.36,0.86683654]
[1766155770342,1.72125064,848.53,846.41,0.86683654]
[1766155770841,1.72125064,848.55,846.43,0.86683654]
[1766155771238,1.72125064,848.57,846.55,0.86683654]
[1766155771840,1.72125064,848.58,846.55,0.86683654]
[1766155772044,1.72125064,848.57,846.55,0.86683654]
[1766155772343,1.72125064,848.53,846.61,0.86683654]
[1766155772743,1.72125064,848.55,846.63,0.86683654]
[1766155772944,1.72125064,848.68,846.77,0.86683654]
[1766155773340,1.72125064,848.73,846.89,0.86683654]
[1766155773541,1.72125064,848.86,847.02,0.86683654]
[1766155773941,1.72125064,848.86,847.03,0.86683654]
[1766155774139,1.72125064,848.82,847.08,0.86683654]
[1766155775147,1.72125064,848.79,847.11,0.86683654]
[1766155775443,1.72125064,848.79,847.1,0.86683654]
[1766155776244,1.72125064,848.76,847.13,0.86683654]
[1766155778147,1.72125064,848.77,847.13,0.86683654]
[1766155778547,1.72125064,848.77,847.14,0.86683654]
[1766155778746,1.72125064,848.77,847.08,0.86683654]
[1766155779052,1.72125064,848.36,846.72,0.86683654]
[1766155779846,1.72125064,848.36,846.72,0.87920768]
[1766155780250,1.72125064,848.34,846.72,0.87920768]
[1766155780551,1.72125064,848.33,846.72,0.87920768]
[1766155781249,1.72125064,848.29,846.7,0.87920768]
[1766155781452,1.72125064,848.16,846.56,0.87920768]
[1766155782252,1.72125064,848.15,846.57,0.87920768]
[1766155782549,1.72125064,848.16,846.57,0.87920768]
[1766155784451,1.72125064,848.17,846.57,0.87920768]
[1766155785252,1.72125064,848.17,846.56,0.87920768]
[1766155787258,1.72125064,848.15,846.53,0.87920768]
[1766155787458,1.72125064,848.15,846.52,0.87920768]
[1766155788357,1.72125064,848.16,846.52,0.87920768]
[1766155788755,1.72125064,848.19,846.55,0.87920768]
[1766155791360,1.72125064,848.19,846.54,0.87920768]
[1766155791555,1.72125064,848.19,846.55,0.87920768]
[1766155792255,1.72125064,848.28,846.63,0.87920768]
[1766155792555,1.72125064,848.28,846.64,0.87920768]
[1766155793155,1.72125064,848.29,846.65,0.87920768]
[1766155793354,1.72125064,848.36,846.72,0.87920768]
[1766155794161,1.72125064,848.37,846.73,0.87920768]
[1766155794359,1.72125064,848.43,846.79,0.87920768]
[1766155794956,1.72125064,848.4,846.76,0.87920768]
[1766155795457,1.72125064,848.3,846.66,0.87920768]
[1766155795655,1.72125064,848.3,845.75,2.9373681]
[1766155795656,1.72125064,848.27,846.63,0.87920768]
[1766155797062,1.72125064,848.19,846.55,0.87920768]
[1766155797362,1.72125064,848.16,846.51,0.87920768]
[1766155798058,1.72125064,848.16,846.36,1.17225371]
[1766155798059,1.72125064,848.13,846.48,0.87920768]
[1766155798660,1.72125064,848.03,846.38,0.87920768]
[1766155798964,1.72125064,848.02,846.37,0.87920768]
[1766155799359,1.72125064,848.02,846.21,1.17225371]
[1766155799360,1.72125064,848.03,846.36,0.87920768]
[1766155800361,1.72125064,848.12,846.45,0.87920768]
[1766155800565,1.72125064,848.21,846.54,0.87920768]
[1766155801766,1.72125064,848.2,846.54,0.87920768]
[1766155802464,1.72125064,848.21,846.54,0.87920768]
[1766155803261,1.72125064,848.15,846.51,0.87920768]
[1766155803467,1.72125064,848.05,846.4,0.87920768]
[1766155803668,1.72125064,848.07,846.43,0.87920768]
[1766155803864,1.72125064,848.27,846.64,0.87920768]
[1766155804064,1.72125064,848.28,846.64,0.87920768]
[1766155804264,1.72125064,848.21,846.6,0.87920768]
[1766155804866,1.72125064,848.22,846.61,0.87920768]
[1766155806165,1.72125064,848.15,846.54,0.87920768]
[1766155806366,1.72125064,848.03,846.41,0.87920768]
[1766155806665,1.72125064,847.9,846.29,0.87920768]
[1766155807361,1.72125064,847.99,846.35,0.87920768]
[1766155808267,1.72125064,847.95,846.31,0.87920768]
[1766155808466,1.72125064,847.86,846.21,0.87920768]
[1766155809263,1.72125064,847.87,846.2,0.87920768]
[1766155809468,1.72125064,847.88,846.2,0.87920768]
[1766155809668,1.72125064,848.1,846.43,0.87920768]
[1766155809864,2.86951678,848.71,846.0,0.20543396]
[1766155809865,1.72125064,848.16,846.49,0.87920768]
[1766155811370,1.72125064,848.16,846.48,0.87920768]
[1766155811868,1.72125064,848.07,846.39,0.87920768]
[1766155812073,1.1683354,847.91,846.39,0.87920768]
[1766155812270,0.01294896,848.92,846.25,0.87920768]
[1766155812271,1.1683354,847.78,846.25,0.87920768]
[1766155812475,1.1683354,847.78,846.24,0.87920768]
[1766155813471,1.1683354,847.79,846.24,0.87920768]
[1766155814178,1.1683354,847.73,846.17,0.87920768]
[1766155814375,4.11179306,848.85,846.0,0.20543396]
[1766155814376,1.1683354,847.67,846.1,0.87920768]
[1766155814573,1.1683354,847.66,846.1,0.87920768]
[1766155815176,1.1683354,847.66,846.09,0.87920768]
[1766155815377,1.1683354,847.68,846.08,0.87920768]
[1766155815576,1.1683354,847.68,846.09,0.87920768]
[1766155815776,1.1683354,847.78,846.19,0.87920768]
[1766155816273,1.1683354,847.78,846.18,0.87920768]
[1766155816473,1.1683354,847.78,846.17,0.87920768]
[1766155816880,1.1683354,847.74,846.13,0.87920768]
[1766155817080,1.1683354,847.7,846.09,0.87920768]
[1766155817277,1.1683354,847.71,846.08,0.87920768]
[1766155818183,1.1683354,847.72,846.07,0.87920768]
[1766155818883,1.1683354,847.7,846.02,0.87920768]
[1766155819078,1.1683354,847.65,845.99,0.87920768]
[1766155819283,1.1683354,847.66,845.98,0.87920768]
[1766155820087,1.1683354,847.57,845.89,1.08468349]
[1766155820283,1.1683354,847.58,845.89,0.20547581]
[1766155821183,1.1683354,847.59,845.89,0.20547581]
[1766155822280,1.1683354,847.59,845.86,0.87920768]
[1766155822680,1.1683354,847.58,845.86,0.87920768]
[1766155822985,1.1683354,847.55,845.82,0.87920768]
[1766155823181,1.1683354,847.56,845.81,0.87920768]
[1766155823384,1.1683354,847.61,845.88,0.87920768]
[1766155823780,1.1683354,847.57,845.84,0.87920768]
[1766155824185,1.1683354,847.58,845.83,0.87920768]
[1766155824689,1.1683354,847.5,845.75,0.87920768]
[1766155825186,1.1683354,847.51,845.74,0.87920768]
[1766155825588,1.1683354,847.64,845.88,0.87920768]
[1766155825889,2.86951678,848.4,845.65,0.20552799]
[1766155825890,1.1683354,847.69,845.93,0.87920768]
[1766155826391,1.1683354,847.7,845.93,0.87920768]
[1766155826590,1.1683354,847.7,845.94,0.87920768]
[1766155827287,1.1683354,847.71,845.93,0.87920768]
[1766155827492,1.1683354,847.76,845.98,0.87920768]
[1766155827789,1.1683354,847.82,846.04,0.87920768]
[1766155827987,1.1683354,847.86,846.08,0.87920768]
[1766155828591,1.1683354,847.86,845.93,1.17225371]
[1766155828592,1.1683354,847.9,846.12,0.87920768]
[1766155829191,1.1683354,848.02,846.25,0.87920768]
[1766155829391,1.1683354,848.03,846.25,0.87920768]
[1766155829689,1.1683354,848.1,846.32,0.87920768]
[1766155830994,1.1683354,848.09,846.32,0.87920768]
[1766155831392,1.1683354,848.08,846.31,0.87920768]
[1766155832196,1.1683354,848.08,846.32,0.87920768]
[1766155833397,1.1683354,848.07,846.33,0.87920768]
[1766155834197,1.1683354,847.98,846.25,0.87920768]
[1766155834493,1.1683354,847.97,846.27,0.87920768]
[1766155835396,1.1683354,847.95,846.29,0.87920768]
[1766155836193,1.1683354,847.95,846.3,0.87920768]
[1766155836398,1.1683354,847.93,846.32,0.87920768]
[1766155836698,1.1683354,847.94,846.32,0.87920768]
[1766155837201,1.1683354,847.93,846.33,0.87920768]
[1766155837397,1.1683354,847.93,846.02,1.72831058]
[1766155837398,1.1683354,847.91,846.35,0.87920768]
[1766155838401,1.1683354,847.88,846.38,0.87920768]
[1766155838597,1.1683354,847.88,846.23,1.17225371]
[1766155838793,1.1683354,847.88,846.38,0.8793911]
[1766155839299,1.1683354,847.88,846.39,0.8793911]
[1766155839699,1.1683354,847.88,846.38,0.8793911]
[1766155840296,1.1683354,847.89,846.41,0.8793911]
[1766155840897,1.1683354,847.94,846.46,0.8793911]
[1766155841099,1.1683354,848.01,846.53,0.8793911]
[1766155843501,1.1683354,847.99,846.51,0.8793911]
[1766155843795,1.1683354,847.98,846.5,0.8793911]
[1766155844001,1.1683354,847.9,846.42,0.8793911]
[1766155844197,1.1683354,847.9,846.43,0.8793911]
[1766155844497,1.1683354,847.9,846.42,0.8793911]
[1766155845398,1.1683354,847.9,846.43,0.8793911]
[1766155846003,1.1683354,847.9,846.42,0.8793911]
[1766155846299,1.1683354,847.56,846.08,0.8793911]
[1766155846499,1.1683354,847.18,845.56,0.8793911]
[1766155846697,1.1683354,847.04,845.55,0.8793911]
[1766155846896,1.1683354,847.04,845.47,0.20548855]
[1766155846897,1.1683354,847.11,845.62,0.8793911]
[1766155847299,1.1683354,847.05,845.5,0.8793911]
[1766155847504,1.1683354,846.72,845.5,0.8793911]
[1766155847700,1.1683354,846.72,844.7,0.01300992]
[1766155847701,1.1683354,846.64,845.13,0.20561725]
[1766155848103,1.1683354,846.64,844.7,0.01300992]
[1766155848104,1.1683354,846.71,845.15,0.8793911]
[1766155848301,1.1683354,846.79,845.11,0.8793911]
[1766155848606,1.1683354,846.8,845.11,0.8793911]
[1766155848805,1.1683354,846.83,845.15,0.8793911]
[1766155849002,1.1683354,846.97,845.29,0.8793911]
[1766155849301,1.1683354,847.05,845.3,0.8793911]
[1766155849704,1.1683354,847.05,845.31,0.8793911]
[1766155849900,1.1683354,847.11,845.37,0.8793911]
[1766155850304,1.1683354,847.13,845.34,0.8793911]
[1766155850506,1.1683354,847.23,845.44,0.8793911]
[1766155850901,1.1683354,847.24,845.44,0.8793911]
[1766155851102,1.1683354,847.3,845.51,0.8793911]
[1766155851303,1.1683354,847.31,845.5,0.8793911]
[1766155851705,1.1683354,847.31,845.49,0.8793911]
[1766155852206,1.1683354,847.32,845.48,0.8793911]
[1766155852605,1.1683354,847.32,845.49,0.8793911]
[1766155853108,1.1683354,847.33,845.48,0.8793911]
[1766155854212,1.1683354,847.33,845.47,0.8793911]
[1766155854407,1.1683354,847.33,845.48,0.8793911]
[1766155854908,1.1683354,847.36,845.51,0.8793911]
[1766155856009,1.1683354,847.41,845.56,0.8793911]
[1766155856211,1.1683354,847.47,845.61,0.8793911]
[1766155856509,1.1683354,847.46,845.61,0.8793911]
[1766155857105,1.1683354,847.47,845.61,0.8793911]
[1766155857604,1.1683354,847.46,845.61,0.8793911]
[1766155858306,1.1683354,847.46,845.6,0.8793911]
[1766155858509,1.1683354,847.5,845.64,0.8793911]
[1766155858810,1.1683354,847.52,845.66,0.8793911]
[1766155859609,1.1683354,847.6,845.74,0.8793911]
[1766155859806,1.1683354,847.69,845.83,0.8793911]
[1766155860004,1.1683354,847.72,845.86,0.8793911]
[1766155860207,1.1683354,847.87,846.01,0.8793911]
[1766155860811,1.1683354,847.8,845.94,0.8793911]
[1766155861111,1.1683354,847.77,845.91,0.8793911]
[1766155861310,1.1683354,847.73,845.71,1.17225371]
[1766155861511,1.1683354,847.72,845.72,1.17225371]
[1766155861711,1.1683354,847.6,845.59,1.17225371]
[1766155862211,1.1683354,847.6,845.6,1.17225371]
[1766155862611,1.1683354,847.51,845.51,1.17225371]
[1766155862812,1.1683354,847.48,845.48,1.17225371]
[1766155863413,1.1683354,847.47,845.48,1.17225371]
[1766155863613,1.1683354,847.48,845.49,1.17225371]
[1766155864209,1.1683354,847.47,845.49,1.17225371]
[1766155865110,1.1683354,847.34,845.37,1.17225371]
[1766155865310,1.1683354,847.33,845.36,1.17225371]
[1766155866213,1.1683354,847.33,845.37,1.17225371]
[1766155866512,1.1683354,847.33,845.36,1.17225371]
[1766155866914,1.1683354,847.33,845.37,1.17225371]
[1766155867411,1.1683354,847.34,845.36,1.17225371]
[1766155868015,1.1683354,847.29,845.31,1.17225371]
[1766155868310,1.1683354,847.29,845.3,1.17225371]
[1766155868715,1.1683354,847.23,845.24,1.17225371]
[1766155869414,1.1683354,847.23,845.23,1.17225371]
[1766155869915,1.1683354,847.23,845.24,1.17225371]
[1766155870416,1.1683354,847.14,845.14,1.17225371]
[1766155870712,1.1683354,847.14,845.13,1.17225371]
[1766155871113,1.1683354,847.13,845.13,1.17225371]
[1766155871314,1.1683354,847.14,845.13,1.17225371]
[1766155872218,1.1683354,847.16,845.15,1.17225371]
[1766155873222,1.1683354,847.17,845.15,1.17225371]
[1766155873419,1.1683354,847.17,845.14,1.17225371]
[1766155875216,1.1683354,847.17,845.13,1.17225371]
[1766155875420,1.1683354,847.18,845.13,1.17225371]
[1766155876215,1.1683354,847.18,845.12,1.17225371]
[1766155877317,1.1683354,847.19,845.12,1.17225371]
[1766155877518,1.1683354,847.22,845.15,1.17225371]
[1766155878123,1.1683354,847.27,845.2,1.17225371]
[1766155878424,1.1683354,847.32,845.24,1.17225371]
[1766155878622,1.1683354,847.42,845.34,1.17225371]
[1766155878918,1.1683354,847.42,845.35,1.17225371]
[1766155879217,1.1683354,847.42,845.34,1.17225371]
[1766155879420,1.1683354,847.44,845.36,1.17225371]
[1766155879821,1.1683354,847.44,845.37,1.17225371]
[1766155880220,1.1683354,847.44,845.36,1.17225371]
[1766155880520,1.1683354,847.5,845.43,1.17225371]
[1766155880716,1.1683354,847.5,845.42,1.17225371]
[1766155881921,1.1683354,847.5,845.43,1.17225371]
[1766155882124,1.1683354,847.54,845.46,1.17225371]
[1766155882724,1.1683354,847.62,845.55,1.17225371]
[1766155883619,1.1683354,847.61,845.54,1.17225371]
[1766155884724,1.1683354,847.54,845.47,1.17225371]
[1766155885024,1.1683354,847.49,845.42,1.17225371]
[1766155885220,1.1683354,847.5,845.41,1.17225371]
[1766155885425,1.1683354,847.49,845.42,1.17225371]
[1766155886825,1.1683354,847.5,845.42,1.17225371]
[1766155887427,1.1683354,847.49,845.42,1.17225371]
[1766155887724,1.1683354,847.5,845.42,1.17225371]
[1766155888026,1.1683354,847.5,845.43,1.17225371]
[1766155888225,1.1683354,847.55,845.47,1.17225371]
[1766155888428,1.1683354,847.54,845.48,1.17225371]
[1766155889730,1.1683354,847.46,845.41,1.17225371]
[1766155890126,1.1683354,847.45,845.41,1.17225371]
[1766155890327,1.1683354,847.45,845.42,1.17225371]
[1766155890730,1.1683354,847.45,845.4,1.17225371]
[1766155890928,1.1683354,847.41,845.38,1.17225371]
[1766155891333,1.1683354,847.37,845.36,1.17225371]
[1766155891535,2.86951678,848.17,845.5,0.87641839]
[1766155891536,1.1683354,847.36,845.5,0.87641839]
[1766155892133,1.1683354,847.37,845.51,0.87641839]
[1766155892430,1.1683354,847.36,845.52,0.87641839]
[1766155893130,1.1683354,847.35,845.53,0.87641839]
[1766155893333,1.1683354,847.35,845.54,0.87641839]
[1766155894231,1.1683354,847.35,845.55,0.87641839]
[1766155894433,1.1683354,847.34,845.55,0.87641839]
[1766155895334,1.1683354,847.32,845.55,0.87641839]
[1766155896234,1.1683354,847.32,845.56,0.87641839]
[1766155896436,1.1683354,847.31,845.56,0.87641839]
[1766155896833,1.1683354,847.32,845.56,0.87641839]
[1766155897032,1.1683354,847.32,845.57,0.87641839]
[1766155897334,1.1683354,847.38,845.66,0.87641839]
[1766155897638,1.1683354,847.24,845.51,0.87641839]
[1766155897833,1.1683354,847.23,845.51,0.87641839]
[1766155898334,1.1683354,847.23,845.52,0.87641839]
[1766155898536,1.1683354,847.38,845.67,0.87641839]
[1766155898933,1.1683354,847.39,845.7,0.87641839]
[1766155899137,1.1683354,847.41,845.7,0.87641839]
[1766155899439,1.1683354,847.47,845.8,0.87641839]
[1766155900240,1.1683354,847.47,845.65,1.17225371]
[1766155901038,1.72125064,847.63,845.65,1.17225371]
[1766155901237,1.72125064,847.63,845.5,1.72831058]
[1766155901436,1.72125064,847.63,844.97,0.20570962]
[1766155901733,2.86951678,848.24,844.97,0.20570962]
[1766155902137,0.20552193,847.43,845.89,0.87886255]
[1766155902539,0.20552193,847.43,845.73,1.17181673]
[1766155903243,0.20552193,847.43,845.58,1.7577251]
[1766155904841,0.20552193,847.43,845.04,0.00891971]
[1766155905041,0.20552193,847.43,844.97,0.20570962]
[1766155913352,0.20552193,847.43,845.86,1.17645153]
[1766155913552,1.1702719,847.29,846.02,0.88233865]
[1766155915154,1.1702719,847.29,846.01,0.88233865]
[1766155916555,1.1702719,847.15,845.87,0.88233865]
[1766155917256,1.1702719,847.11,845.83,0.88233865]
[1766155918660,1.1702719,847.09,845.81,0.88233865]
[1766155918857,1.1702719,847.03,845.75,0.88233865]
[1766155919061,1.1702719,846.93,845.65,0.88233865]
[1766155919256,1.1702719,846.87,845.57,0.88233865]
[1766155919556,1.1702719,846.82,845.52,0.88233865]
[1766155919859,1.1702719,846.77,845.47,0.88233865]
[1766155920060,1.1702719,846.77,845.46,0.88233865]
[1766155921158,1.1702719,846.78,845.45,0.88233865]
[1766155921357,1.1702719,846.81,845.48,0.88233865]
[1766155921560,1.1702719,846.81,845.33,1.17645153]
[1766155921561,1.1702719,846.95,845.64,0.88233865]
[1766155921960,1.1702719,846.97,845.66,0.88233865]
[1766155922260,0.20552193,847.43,845.88,0.88233865]
[1766155922261,1.1702719,847.19,845.88,0.88233865]
[1766155922455,1.1702719,847.18,845.88,0.88233865]
[1766155923158,1.1702719,847.18,845.89,0.88233865]
[1766155923961,1.1702719,847.23,845.78,1.17645153]
[1766155924156,1.1702719,847.26,845.97,0.88214965]
[1766155924355,1.1702719,847.27,845.97,0.88214965]
[1766155924661,1.1702719,847.37,846.07,0.88214965]
[1766155924861,0.20552193,847.43,846.15,0.88214965]
[1766155925460,0.20552193,847.43,846.14,0.88214965]
[1766155925660,0.20552193,847.43,846.1,0.88214965]
[1766155925661,1.1702719,847.42,846.1,0.88214965]
[1766155926061,1.1702719,847.32,846.01,0.88214965]
[1766155926258,1.1702719,847.31,846.0,0.88214965]
[1766155926558,1.1702719,847.31,845.99,0.88214965]
[1766155927160,1.1702719,847.25,845.94,0.88214965]
[1766155927362,1.1702719,847.26,845.94,0.88214965]
[1766155927864,1.1702719,847.26,845.78,1.17645153]
[1766155927865,1.1702719,847.31,846.0,0.88214965]
[1766155928362,1.1702719,847.32,845.99,0.88214965]
[1766155929165,1.1702719,847.31,845.99,0.88214965]
[1766155929761,1.1702719,847.32,846.0,0.88214965]
[1766155930062,1.1702719,847.32,845.99,0.88214965]
[1766155930264,1.1702719,847.28,845.96,0.88214965]
[1766155930465,1.1702719,847.27,845.95,0.88214965]
[1766155930763,1.1702719,847.11,845.79,0.88214965]
[1766155931162,1.1702719,847.11,845.8,0.88214965]
[1766155931366,1.1702719,847.18,845.87,0.88214965]
[1766155932166,1.1702719,847.2,845.9,0.88214965]
[1766155933268,1.1702719,847.22,845.93,0.88214965]
[1766155933469,1.1702719,847.22,845.94,0.88214965]
[1766155933970,1.1702719,847.24,845.96,0.88214965]
[1766155934372,1.1702719,847.23,845.96,0.88214965]
[1766155934572,1.1702719,847.38,846.12,0.88214965]
[1766155934773,0.20552193,847.43,846.22,0.88214965]
[1766155935467,0.20552193,847.43,846.21,0.88214965]
[1766155935766,0.20552193,847.43,846.23,0.88214965]
[1766155936171,0.20552193,847.43,846.22,0.88214965]
[1766155937474,1.1702719,847.3,846.02,0.88214965]
[1766155937871,1.1702719,847.29,846.01,0.88214965]
[1766155938175,1.1702719,847.29,846.02,0.88214965]
[1766155942472,1.1702719,847.33,846.06,0.88214965]
[1766155945277,1.1702719,847.34,846.06,0.88214965]
[1766155945577,1.1702719,847.33,846.06,0.88214965]
[1766155945877,1.1702719,847.34,846.06,0.88214965]
[1766155946077,1.1702719,847.42,846.14,0.88214965]
[1766155946384,0.20552193,847.43,846.16,0.88214965]
[1766155947378,0.20552193,847.43,846.15,0.88214965]
[1766155949378,0.20552193,847.43,846.2,0.88214965]
[1766155950080,0.20552193,847.43,846.18,0.88214965]
[1766155950281,0.20552193,847.43,846.17,0.88214965]
[1766155951583,0.20552193,847.43,846.28,0.88214965]
[1766155952784,0.20552193,847.43,846.34,0.88214965]
[1766155953181,0.20552193,847.43,846.33,0.88214965]
[1766155954185,0.20552193,847.43,846.32,0.88214965]
[1766155955185,0.20552193,847.43,846.31,0.88214965]
[1766155956182,0.20552193,847.43,846.3,0.88214965]
[1766155958186,0.20552193,847.43,846.29,0.88214965]
[1766155958386,0.20552193,847.43,846.3,0.88214965]
[1766155958882,0.20552193,847.43,846.29,0.88214965]
[1766155960083,0.20552193,847.43,846.28,0.88214965]
[1766155960283,0.20552193,847.43,846.27,0.88214965]
[1766155960689,0.20552193,847.43,846.24,0.88214965]
[1766155960889,0.20552193,847.43,846.2,0.88214965]
[1766155961085,0.20552193,847.43,846.17,0.88214965]
[1766155962090,0.20552193,847.43,846.12,0.88214965]
[1766155962690,0.20552193,847.43,845.27,0.01059727]
[1766155962691,0.20552193,847.43,846.09,0.88214965]
[1766155962891,0.20552193,847.43,846.06,0.88214965]
[1766155964392,0.20552193,847.43,846.02,0.88214965]
[1766155964688,0.20552193,847.43,845.15,2.94112884]
[1766155964689,1.1702719,847.42,845.99,0.88214965]
[1766155965091,1.1702719,847.42,846.0,0.88214965]
[1766155966088,1.1702719,847.38,845.96,0.88214965]
[1766155966291,1.1702719,847.33,845.92,0.88214965]
[1766155969290,1.1702719,847.34,845.92,0.88214965]
[1766155970095,1.1702719,847.33,845.92,0.88214965]
[1766155970996,1.1702719,847.29,845.88,0.88214965]
[1766155971194,1.1702719,847.29,845.87,0.88214965]
[1766155972295,1.1702719,847.29,845.88,0.88214965]
[1766155972502,1.1702719,847.29,845.87,0.88214965]
[1766155972699,1.1702719,847.21,845.8,0.88214965]
[1766155973000,1.1702719,847.18,845.76,0.88214965]
[1766155973295,1.1702719,847.18,845.61,1.17645153]
[1766155973296,1.1702719,847.14,845.72,0.88214965]
[1766155973496,1.1702719,847.14,845.71,0.88214965]
[1766155973695,1.1702719,847.15,845.72,0.88214965]
[1766155973895,1.1702719,847.14,845.72,0.88214965]